fUSD/lending_fUSD_20251115
["ID","MTS","AMOUNT","RATE_DAILY","PERIOD"]
[394077821,1763244656581,-151.0,0.00041439,120]
[394077822,1763244656590,-151.0,0.00041439,120]
[394077823,1763244656600,-151.0,0.00041439,120]
[394077824,1763244656610,-151.0,0.00041439,120]
[394077825,1763244656619,-151.0,0.00041439,120]
[394077826,1763244656629,-282.284824,0.00041439,45]
[394077827,1763244656639,-151.0,0.00041439,120]
[394077828,1763244656648,-282.284824,0.00041439,45]
[394077829,1763244656658,-151.0,0.00041439,120]
[394077830,1763244656672,-282.284824,0.00041439,45]
[394077831,1763244656683,-282.284824,0.00041439,45]
[394077832,1763244656693,-473.7554,0.00041439,120]
[394077833,1763244656703,-473.7554,0.00041439,120]
[394077834,1763244656714,-473.7554,0.00041439,120]
[394077835,1763244656724,-151.0,0.00041439,120]
[394077836,1763244656734,-151.0,0.00041439,120]
[394077837,1763244656746,-473.7554,0.00041439,120]
[394077838,1763244656756,-151.0,0.00041439,120]
[394077839,1763244656766,-151.0,0.00041439,120]
[394077840,1763244656776,-1348.898314,0.00041439,28]
[394077841,1763244656786,-1348.898314,0.00041439,28]
[394077842,1763244656796,-150.0,0.00041439,2]
[394077843,1763244656805,-1348.898314,0.00041439,28]
[394077844,1763244656814,-1348.898314,0.00041439,28]
[394077845,1763244656824,-151.0,0.00041439,120]
[394077846,1763244656833,-163.451954,0.00041439,120]
[394077847,1763244656842,-163.451954,0.00041439,120]
[394077848,1763244656851,-163.451954,0.00041439,120]
[394077849,1763244656860,-163.451954,0.00041439,120]
[394077850,1763244656870,-151.0,0.00041439,120]
[394077851,1763244656880,-329654.97915162,0.0004144,27]
[394077852,1763244656890,-666.0,0.0004144,30]
[394077853,1763244656899,-1868983.54496783,0.0004144,2]
[394077854,1763244657095,-1610.27475629,0.0004144,2]
[394077855,1763244657114,-151.0,0.0003602,31]
[394077856,1763244657124,-958.09975115,0.00041271,30]
[394077857,1763244657135,-689.72524371,0.00041271,30]
[394077858,1763244657149,-1187.06296014,0.00041271,30]
[394077859,1763244657158,-61009.53176065,0.0004144,2]
[394077860,1763244657171,-2626.06590108,0.0004144,2]
[394077861,1763244657207,-14010993.7358091,0.0004144,2]
[394077862,1763244657908,-697.84855738,0.00023959,2]
[394077863,1763244657918,-98.88993212,0.00028785,2]
[394077871,1763244801671,513.617036,0.00027401,120]
[394077878,1763244991395,759.48,0.00013699,2]
[394077884,1763245130636,500.0,0.00030136,120]
[394077886,1763245181381,-300.0,0.00016394,2]
[394077887,1763245181405,-1200.0,0.00016394,2]
[394077888,1763245181428,-340.0,0.00016394,2]
[394077889,1763245181453,-500.0,0.00016395,2]
[394077890,1763245181478,-626.01697815,0.00016395,2]
[394077891,1763245181502,-500.0,0.00016395,2]
[394077892,1763245181526,-500.0,0.00016395,2]
[394077893,1763245181549,-500.0,0.00016395,2]
[394077894,1763245181573,-500.0,0.00016395,2]
[394077895,1763245181596,-500.0,0.00016395,2]
[394077896,1763245181620,-500.0,0.00016395,2]
[394077897,1763245181644,-601.84203093,0.00016395,2]
[394077898,1763245181669,-601.84203093,0.00016395,2]
[394077899,1763245181693,-601.84203093,0.00016395,2]
[394077900,1763245181718,-601.84203092,0.00016395,2]
[394077901,1763245181740,-500.0,0.00016395,2]
[394077902,1763245181762,-500.0,0.00016395,2]
[394077903,1763245181783,-500.0,0.00016395,2]
[394077904,1763245181806,-500.0,0.00016395,2]
[394077905,1763245181827,-500.0,0.00016395,2]
[394077906,1763245181851,-32126.61489814,0.00016396,2]
[394077909,1763245206626,-2163.57,0.00016386,2]
[394077910,1763245206652,-1200.0,0.00016395,2]
[394077911,1763245206676,-300.0,0.00016395,2]
[394077912,1763245206703,-57336.43,0.00016396,2]
[394077913,1763245216794,-1000.0,0.00016396,2]
[394077914,1763245269918,-1524.55504694,0.00016297,2]
[394077915,1763245269942,-177.0,0.00016395,2]
[394077916,1763245269965,-550.0,0.00016395,2]
[394077917,1763245269990,-17748.44495306,0.00016396,2]
[394077918,1763245278667,-5000.0,0.00016396,2]
[394077919,1763245295658,-15000.0,0.00016396,2]
[394078140,1763245523718,25258.96983958,0.0002,30]
[394078147,1763245579991,1500.0,0.00030137,120]
[394078151,1763245615693,67438.53899502,0.000162,5]
[394078170,1763245720198,5336.47356138,0.00015,3]
[394078171,1763245720223,2724.82641522,0.00015,3]
[394078172,1763245721004,7275.18358478,0.0001,2]
[394078173,1763245721026,1018.13309738,0.0001,2]
[394078175,1763245724152,1344.56654099,0.00013699,2]
[394078219,1763245831767,-3875.57427894,0.00016196,2]
[394078220,1763245831777,-506.65983477,0.00016273,2]
[394078221,1763245831785,-500.0,0.00016273,2]
[394078222,1763245831795,-500.0,0.00016273,2]
[394078223,1763245831804,-1200.0,0.00016295,2]
[394078224,1763245831813,-300.0,0.00016295,2]
[394078225,1763245831822,-550.0,0.00016295,2]
[394078226,1763245831831,-195.0,0.00016295,2]
[394078227,1763245831840,-280.2361,0.00016296,2]
[394078228,1763245831849,-173661.70967787,0.00016296,2]
[394078229,1763245831860,-8959.82602213,0.00016296,2]
[394078230,1763245831869,-500.0,0.00016296,2]
[394078231,1763245831878,-500.0,0.00016296,2]
[394078232,1763245831888,-500.0,0.00016296,2]
[394078233,1763245831897,-500.0,0.00016296,2]
[394078234,1763245831907,-200.30582682,0.00016296,2]
[394078235,1763245831916,-326.5562897,0.00016373,2]
[394078236,1763245831960,-173.4437103,0.00016373,2]
[394078237,1763245831970,-3875.57427888,0.00016393,2]
[394078238,1763245831979,-500.0,0.00016395,2]
[394078239,1763245831988,-500.0,0.00016395,2]
[394078240,1763245831997,-329.99982555,0.00016438,2]
[394078241,1763245832007,-501.0,0.00016496,2]
[394078242,1763245832016,-498.35252009,0.00016496,2]
[394078243,1763245832027,-1.64747991,0.00016496,2]
[394078244,1763245832036,-314.81001809,0.00016496,2]
[394078245,1763245832047,-185.18998191,0.00016496,2]
[394078246,1763245832057,-164.49575531,0.00016496,2]
[394078247,1763245832067,-317.96,0.00016496,2]
[394078248,1763245832137,-17.54424469,0.00016496,2]
[394078249,1763245832146,-1890.75575531,0.00016503,2]
[394078250,1763245832157,-3903.9,0.00016503,2]
[394078251,1763245832167,-625.32671132,0.00016503,2]
[394078274,1763245838203,-1298.01987285,0.00016296,2]
[394078275,1763245838214,-309.60591375,0.00016296,2]
[394078276,1763245838304,-999.0,0.00016296,2]
[394078277,1763245838318,-19550.29239659,0.00016296,2]
[394078278,1763245838329,-394.14575585,0.00016296,2]
[394078279,1763245838340,-326.7999999,0.00016296,2]
[394078280,1763245838352,-725.0,0.00016296,2]
[394078281,1763245838363,-11691.95300017,0.00016296,2]
[394078282,1763245839803,-5818.66294584,0.00016296,2]
[394078283,1763245839815,-687.09700008,0.00016296,2]
[394078284,1763245839826,-8103.71611312,0.00016296,2]
[394078285,1763245839836,-131252.26840185,0.00016296,2]
[394078286,1763245839846,-4180.16753337,0.00016503,2]
[394078287,1763245839855,-3875.57427888,0.0001659,2]
[394078288,1763245839864,-3875.57427888,0.00016787,2]
[394078289,1763245839873,-1000.0,0.00016821,2]
[394078290,1763245839883,-324.04214263,0.00016821,2]
[394078292,1763245839892,-418.62282168,0.00016921,2]
[394078294,1763245839901,-309.66167998,0.00016973,2]
[394078296,1763245839911,-500.0,0.00016973,2]
[394078298,1763245839920,-500.0,0.00016973,2]
[394078300,1763245839929,-500.0,0.00016973,2]
[394078302,1763245839939,-500.0,0.00016973,2]
[394078304,1763245839948,-3875.57427888,0.00016984,2]
[394078306,1763245839957,-169.51824299,0.0001699,2]
[394078308,1763245839966,-174.06883635,0.00016999,2]
[394078310,1763245839976,-602.03428724,0.00016999,2]
[394078312,1763245839985,-184.74657092,0.00016999,2]
[394078314,1763245839995,-215.62216716,0.00016999,2]
[394078316,1763245840004,-458.44633091,0.00016999,2]
[394078318,1763245840014,-3244988.88040806,0.00017,2]
[394078320,1763245840023,-3875.57427888,0.0001718,2]
[394078321,1763245840032,-283.36772499,0.000172,2]
[394078323,1763245840042,-320.56766369,0.000173,2]
[394078324,1763245840051,-825.91062983,0.00017368,2]
[394078325,1763245840060,-3875.57427888,0.00017377,2]
[394078326,1763245840069,-1502.14270288,0.000174,2]
[394078327,1763245840079,-935.0,0.00017419,2]
[394078328,1763245840088,-300.0,0.000175,6]
[394078329,1763245840097,-1000.0,0.00017521,2]
[394078330,1763245840107,-500.0,0.00017521,2]
[394078332,1763245840116,-3875.57427888,0.00017574,2]
[394078334,1763245840126,-700.0,0.000176,6]
[394078335,1763245840135,-1100.0,0.000177,6]
[394078336,1763245840145,-3875.57427888,0.00017771,2]
[394078337,1763245840155,-1500.0,0.000178,6]
[394078338,1763245840165,-420.0,0.0001781,2]
[394078339,1763245840175,-1800.0,0.000179,6]
[394078340,1763245840185,-1680.0,0.000179,2]
[394078341,1763245840195,-195.0,0.00017925,2]
[394078342,1763245840204,-193.0,0.00017925,2]
[394078343,1763245840214,-300.0,0.00017925,2]
[394078344,1763245840223,-357.36431197,0.00017925,2]
[394078345,1763245840233,-250.0,0.00017925,2]
[394078346,1763245840243,-2500.0,0.00017925,2]
[394078347,1763245840252,-300.0,0.00017925,2]
[394078348,1763245840262,-195.0,0.00017925,2]
[394078349,1763245840271,-477.1175801,0.00017968,2]
[394078350,1763245840281,-1023.66106202,0.00017968,2]
[394078351,1763245840290,-3875.57427888,0.00017968,2]
[394078352,1763245840299,-344.39207861,0.00017973,2]
[394078353,1763245840312,-500.0,0.00017973,2]
[394078354,1763245840322,-500.0,0.00017973,2]
[394078355,1763245840332,-162.44434899,0.00017973,2]
[394078356,1763245840341,-163.98407721,0.00017973,2]
[394078357,1763245840352,-150.62753141,0.00017973,2]
[394078358,1763245840362,-255.87981875,0.00017989,2]
[394078359,1763245840371,-1467261.45637273,0.00018,2]
[394078371,1763245843159,-318.31,0.00018,2]
[394078372,1763245843350,150.5,0.00026052,120]
[394078376,1763245843968,150.5,0.00026042,120]
[394078377,1763245844217,150.5,0.00026032,120]
[394078378,1763245845825,-1014.96075742,0.00018,2]
[394078379,1763245845837,-1280.3099978,0.00018,2]
[394078380,1763245846010,-7584.66418199,0.00018,2]
[394078381,1763245846054,-3428.95868699,0.00018,2]
[394078382,1763245846228,-1616.27229453,0.00018,2]
[394078448,1763245888733,380.82133226,0.0003013,120]
[394078449,1763245891296,361.0,0.0003013,120]
[394078450,1763245892069,428.0,0.0003013,120]
[394078451,1763245892865,269.0,0.0003013,120]
[394078452,1763245893659,263.0,0.0003013,120]
[394078453,1763245896414,485.0,0.0003013,120]
[394078454,1763245897216,352.0,0.0003013,120]
[394078455,1763245898034,244.0,0.0003013,120]
[394078456,1763245899021,364.0,0.0003013,120]
[394078457,1763245899791,294.0,0.0003013,120]
[394078459,1763245901045,431.0,0.0003013,120]
[394078462,1763245901349,189.0,0.0003013,120]
[394078463,1763245902129,243.0,0.0003013,120]
[394078464,1763245902906,296.0,0.0003013,120]
[394078465,1763245903745,462.0,0.0003013,120]
[394078467,1763245904553,154.0,0.0003013,120]
[394078468,1763245905344,169.0,0.0003013,120]
[394078469,1763245906120,240.0,0.0003013,120]
[394078471,1763245906919,425.0,0.0003013,120]
[394078472,1763245907692,351.0,0.0003013,120]
[394078473,1763245908467,307.0,0.0003013,120]
[394078476,1763245909266,372.0,0.0003013,120]
[394078545,1763245951559,394.0,0.0003013,120]
[394078546,1763245952408,180.0,0.0003013,120]
[394078547,1763245953513,381.0,0.0003013,120]
[394078548,1763245953899,441.0,0.0003013,120]
[394078549,1763245954689,294.0,0.0003013,120]
[394078550,1763245955491,392.0,0.0003013,120]
[394078551,1763245956466,168.0,0.0003013,120]
[394078552,1763245957067,231.0,0.0003013,120]
[394078605,1763245988782,180.0,0.0003013,120]
[394078615,1763245991051,288.6075474,0.0003013,120]
[394078623,1763245992788,685.0,0.00029987,120]
[394078643,1763246006647,453.1152,0.00016196,2]
[394078644,1763246012072,446.0,0.0003013,120]
[394078645,1763246012848,377.0,0.0003013,120]
[394078646,1763246013620,321.27203677,0.0003013,120]
[394078770,1763246125520,707.0,0.00027514,120]
[394078771,1763246127013,707.0,0.0002889,120]
[394078822,1763246371528,674.64073622,0.00027397,120]
[394078834,1763246565283,166.0,0.00026088,120]
[394078835,1763246565378,166.0,0.00026078,120]
[394078836,1763246565791,166.0,0.00026068,120]
[394078841,1763246681418,402.08,7.908e-05,2]
[394078842,1763246681633,402.08,8.324e-05,2]
[394078843,1763246681844,402.08,8.74e-05,2]
[394078844,1763246682062,402.08,9.156e-05,2]
[394078845,1763246682258,402.08,9.573e-05,2]
[394078846,1763246682491,402.08,9.989e-05,2]
[394078847,1763246682774,402.08,0.00010405,2]
[394078848,1763246682982,402.08,0.00010821,2]
[394078849,1763246683192,402.08,0.00011237,2]
[394078850,1763246683407,402.08,0.00011654,2]
[394078851,1763246683627,402.08,0.0001207,2]
[394078852,1763246683837,402.08,0.00012486,2]
[394078853,1763246684329,402.08,0.00012902,2]
[394078855,1763246684558,402.08,0.00013318,2]
[394078856,1763246684963,402.08,0.00013734,2]
[394078857,1763246685185,402.08,0.00014151,2]
[394078858,1763246685625,402.08,0.00014567,2]
[394078859,1763246685835,402.08,0.00014983,2]
[394078860,1763246686034,402.08,0.00015399,2]
[394078863,1763246778422,2360.49,0.00015661,2]
[394078864,1763246778461,811.99,0.00015661,2]
[394078875,1763246948347,150.0,0.00030129,120]
[394078877,1763247031887,-1042.34,0.00015712,2]
[394078878,1763247031897,-159.4690746,0.00015753,2]
[394078879,1763247031906,-402.08,0.00015815,2]
[394078881,1763247031915,-300.0,0.00015853,2]
[394078884,1763247031924,-195.0,0.00015853,2]
[394078886,1763247031934,-193.73037782,0.0001589,2]
[394078888,1763247031943,-1320.3028566,0.0001589,2]
[394078890,1763247031953,-200.0,0.00015965,2]
[394078892,1763247031963,-200.0,0.00015981,2]
[394078893,1763247031972,-1200.0,0.00016051,2]
[394078894,1763247031982,-2077.89,0.00016052,2]
[394078895,1763247031991,-121700.1834,0.00016096,2]
[394078896,1763247032001,-241.63751216,0.000161,2]
[394078897,1763247032010,-300.0,0.00016169,2]
[394078898,1763247032020,-300.0,0.00016169,2]
[394078899,1763247032029,-848.0,0.0001617,2]
[394078900,1763247032039,-550.0,0.00016172,2]
[394078901,1763247032048,-500.0,0.00016173,2]
[394078902,1763247032057,-500.0,0.00016173,2]
[394078903,1763247032067,-500.0,0.00016173,2]
[394078904,1763247032076,-500.0,0.00016173,2]
[394078905,1763247032085,-500.0,0.00016173,2]
[394078906,1763247032094,-500.0,0.00016173,2]
[394078907,1763247032104,-500.0,0.00016173,2]
[394078908,1763247032113,-500.0,0.00016173,2]
[394078909,1763247032122,-500.0,0.00016173,2]
[394078910,1763247032131,-500.0,0.00016173,2]
[394078911,1763247032140,-500.68799219,0.00016173,2]
[394078912,1763247032149,-200.0,0.00016186,2]
[394078913,1763247032159,-255.87981875,0.00016186,2]
[394078914,1763247032168,-200.0,0.00016186,2]
[394078915,1763247032177,-151.0,0.00016186,2]
[394078916,1763247032186,-151.0,0.00016186,2]
[394078917,1763247032196,-151.0,0.00016186,2]
[394078918,1763247032205,-151.0,0.00016186,2]
[394078919,1763247032214,-151.0,0.00016186,2]
[394078920,1763247032223,-151.0,0.00016186,2]
[394078921,1763247032232,-151.0,0.00016186,2]
[394078922,1763247032242,-151.0,0.00016186,2]
[394078923,1763247032251,-151.0,0.00016186,2]
[394078924,1763247032260,-151.0,0.00016186,2]
[394078925,1763247032269,-151.0,0.00016186,2]
[394078926,1763247032279,-200.0,0.00016186,2]
[394078927,1763247032290,-8349.6311729,0.000162,2]
[394078928,1763247032300,-296.39247259,0.000164,2]
[394078929,1763247032309,-2534.68,0.00016438,2]
[394078930,1763247032318,-338.57656952,0.00016438,2]
[394078931,1763247032327,-347.49833413,0.00016621,2]
[394078932,1763247032336,-31636.39,0.00016662,2]
[394078934,1763247032345,-1000.0,0.00016721,2]
[394078936,1763247032355,-1000.0,0.00016721,2]
[394078938,1763247032364,-1000.0,0.00016721,2]
[394078939,1763247032373,-1000.0,0.00016721,2]
[394078940,1763247032382,-153.88483671,0.00016721,2]
[394078941,1763247032392,-256.62604662,0.00016721,2]
[394078942,1763247032401,-200.0,0.00016734,2]
[394078943,1763247032410,-200.0,0.00016734,2]
[394078944,1763247032419,-220.0,0.00016855,2]
[394078945,1763247032428,-300.0,0.000169,6]
[394078946,1763247032437,-1780.2119,0.000169,2]
[394078947,1763247032446,-2629.04,0.00016986,2]
[394078948,1763247032455,-319.97838066,0.00016999,2]
[394078949,1763247032465,-500.0,0.00016999,2]
[394078950,1763247032475,-515.42408665,0.00016999,2]
[394078951,1763247032484,-500.0,0.00016999,2]
[394078952,1763247032492,-500.0,0.00016999,2]
[394078953,1763247032502,-250.0,0.00017,2]
[394078954,1763247032512,-8349.63117286,0.00017167,2]
[394078955,1763247032520,-500.0,0.00017268,2]
[394078956,1763247032530,-1334.97782505,0.00017268,2]
[394078957,1763247032539,-166.87321661,0.00017273,2]
[394078958,1763247032548,-200.0,0.00017282,2]
[394078959,1763247032557,-200.0,0.00017282,2]
[394078960,1763247032567,-300.0,0.00017283,2]
[394078961,1763247032577,-300.0,0.00017283,2]
[394078962,1763247032586,-300.0,0.00017283,2]
[394078963,1763247032595,-935.0,0.00017287,2]
[394078964,1763247032604,-34264.70748018,0.00017316,2]
[394078965,1763247032616,-289.96440231,0.00017316,2]
[394078966,1763247032643,-500.0,0.00017166,2]
[394078967,1763247032652,-500.0,0.00017166,2]
[394078968,1763247032661,-112089.77903275,0.00017316,2]
[394078969,1763247032685,-500.0,0.00017166,2]
[394078970,1763247032695,-375.65023486,0.00017316,2]
[394078971,1763247032706,-10832.35481481,0.00017316,2]
[394078972,1763247032719,-999.0,0.00017316,2]
[394078973,1763247032755,-328.12621007,0.00017166,2]
[394078974,1763247032765,-10869.36449684,0.00017316,2]
[394078975,1763247032795,-12994.16050198,0.00017316,2]
[394078977,1763247037943,-6611.111737,0.00017316,2]
[394078978,1763247037954,-1120.75111904,0.00017316,2]
[394078979,1763247037966,-7851.26138464,0.00017316,2]
[394078980,1763247037978,-2524.94000031,0.00017316,2]
[394078981,1763247037988,-34589.91306365,0.00017316,2]
[394078982,1763247038003,-24791.56985218,0.00017316,2]
[394078983,1763247038014,-36125.57380998,0.00017316,2]
[394078984,1763247038025,-2416.06200004,0.00017316,2]
[394078985,1763247039964,-638.38951432,0.00017316,2]
[394078986,1763247039976,-511.87051959,0.00017316,2]
[394078987,1763247039987,-939.45649465,0.00017316,2]
[394078988,1763247039998,-1865.06417053,0.00017316,2]
[394078989,1763247040009,-2756.69196743,0.00017316,2]
[394078990,1763247040020,-478.17719005,0.00017316,2]
[394078991,1763247040031,-957.587823,0.00017316,2]
[394078992,1763247040042,-9907.21093007,0.00017316,2]
[394078993,1763247040053,-44306.02621086,0.00017316,2]
[394078994,1763247040065,-225722.78909433,0.00017316,2]
[394078995,1763247040074,-500.0,0.00017373,2]
[394078996,1763247040083,-500.0,0.00017373,2]
[394078997,1763247040092,-354.35067401,0.00017373,2]
[394078998,1763247040101,-500.0,0.00017373,2]
[394078999,1763247040110,-502.05353443,0.00017373,2]
[394079000,1763247040120,-500.0,0.00017373,2]
[394079001,1763247040129,-500.0,0.00017373,2]
[394079002,1763247040138,-217.8176856,0.00017373,2]
[394079003,1763247040148,-507.32409942,0.00017373,2]
[394079004,1763247040157,-531.85620126,0.00017373,2]
[394079005,1763247040166,-500.0,0.00017373,2]
[394079006,1763247040175,-500.0,0.00017373,2]
[394079007,1763247040186,-300.0,0.00017397,2]
[394079008,1763247040195,-393.50601346,0.00017397,2]
[394079009,1763247040204,-250.0,0.00017397,2]
[394079010,1763247040214,-195.0,0.00017397,2]
[394079011,1763247040224,-193.0,0.00017397,2]
[394079012,1763247040234,-2500.0,0.00017397,2]
[394079013,1763247040243,-300.0,0.00017397,2]
[394079014,1763247040253,-357.36431197,0.00017397,2]
[394079015,1763247040262,-250.0,0.00017397,2]
[394079016,1763247040271,-195.0,0.00017397,2]
[394079017,1763247040280,-295.22367954,0.00017575,2]
[394079018,1763247040289,-600.0,0.00017593,2]
[394079019,1763247040299,-173.98,0.00017593,2]
[394079020,1763247040309,-166.66,0.00017601,2]
[394079021,1763247040318,-222.2113773,0.00017636,2]
[394079022,1763247040328,-1680.0,0.00017636,2]
[394079023,1763247040338,-420.0,0.00017675,2]
[394079024,1763247040348,-420.0,0.00017675,2]
[394079025,1763247040358,-700.0,0.000177,6]
[394079026,1763247040367,-295.22367954,0.00017779,2]
[394079027,1763247040377,-1100.0,0.000178,6]
[394079028,1763247040386,-200.0,0.0001783,2]
[394079029,1763247040395,-200.0,0.0001783,2]
[394079030,1763247040405,-1000.0,0.000179,2]
[394079031,1763247040415,-300.37,0.000179,2]
[394079032,1763247040424,-1500.0,0.000179,6]
[394079033,1763247040433,-1002.29959489,0.00017921,2]
[394079034,1763247040442,-1000.0,0.00017921,2]
[394079035,1763247040452,-325.91062983,0.00017921,2]
[394079037,1763247040461,-1000.0,0.00017921,2]
[394079038,1763247040470,-492.0,0.00017973,2]
[394079039,1763247040479,-344.39207861,0.00017973,2]
[394079040,1763247040489,-163.98407721,0.00017973,2]
[394079041,1763247040498,-162.44434899,0.00017973,2]
[394079042,1763247040507,-158.9633835,0.00017973,2]
[394079043,1763247040517,-500.0,0.00017973,2]
[394079044,1763247040526,-514.89732822,0.00017982,2]
[394079045,1763247040535,-1502.14270288,0.00017982,2]
[394079046,1763247040545,-500.0,0.00017982,2]
[394079047,1763247040554,-210.06111706,0.0001799,2]
[394079048,1763247040563,-596.90623872,0.00017999,2]
[394079049,1763247040573,-1253357.05544681,0.00018,2]
[394079050,1763247040590,-1558.9901465,0.00018,2]
[394079051,1763247040601,-476.33,0.00018,2]
[394079052,1763247040611,-730.0,0.00018,2]
[394079053,1763247040626,-2363.77976898,0.00018,2]
[394079054,1763247040640,-3999.19441267,0.00018,2]
[394079055,1763247040655,-544.90783643,0.00018,2]
[394079056,1763247040670,-41116.81294495,0.00018,2]
[394079057,1763247040680,-88425.96477793,0.00018,2]
[394079068,1763247043080,-809.46,0.00018,2]
[394079069,1763247043092,-3056.44712542,0.00018,2]
[394079070,1763247043103,-37548.22949489,0.00018,2]
[394079071,1763247043114,-1015.39168649,0.00018,2]
[394079072,1763247043153,-1015.95344153,0.00018,2]
[394079073,1763247043164,-29140.32625423,0.00018,2]
[394079074,1763247043174,-1827.93158466,0.00018,2]
[394079075,1763247043185,-31738.99722215,0.00018,2]
[394079076,1763247043196,-3200.0,0.00018,2]
[394079077,1763247043215,-6427.23278544,0.00018,2]
[394079078,1763247043227,-844.9023168,0.00018,2]
[394079079,1763247043238,-37524.21219769,0.00018,2]
[394079080,1763247043249,-95706.71405007,0.00018,2]
[394079081,1763247043443,-412.05845751,0.00018,2]
[394079083,1763247046085,-286.66,0.00017982,2]
[394079084,1763247046097,-8.56367954,0.00017982,2]
[394079085,1763247046106,-384.13978647,0.00018,2]
[394079086,1763247046118,-8219.999997,0.00018,2]
[394079087,1763247046129,-1184.00002,0.00018,2]
[394079088,1763247046140,-3534.9999997,0.00018,2]
[394079089,1763247046317,-390.43581403,0.00018,2]
[394079094,1763247284334,150.5,0.00026098,120]
[394079095,1763247284781,150.5,0.00026088,120]
[394079096,1763247285635,150.5,0.00026078,120]
[394079097,1763247313116,299.0,0.0002661,120]
[394079098,1763247314505,299.0,0.0002794,120]
[394079099,1763247315868,299.0,0.00029337,120]
[394079100,1763247492269,969.56,0.0002518,120]
[394079101,1763247608013,167.0,0.00026962,120]
[394079102,1763247609422,167.0,0.0002831,120]
[394079103,1763247610722,167.0,0.00029726,120]
[394079104,1763247631295,293.27100809,0.00030137,120]
[394079114,1763247815079,721.5,0.00013699,2]
[394079117,1763247907243,167.0,0.0002763,120]
[394079118,1763247908461,167.0,0.00029011,120]
[394079119,1763248004762,150.5,0.00026088,120]
[394079120,1763248005191,150.5,0.00026078,120]
[394079121,1763248005907,150.5,0.00026068,120]
[394079122,1763248017528,150.0,0.00016328,120]
[394079123,1763248068735,162.77,0.00012658,2]
[394079127,1763248140394,150.0,0.00030136,120]
[394079135,1763248232044,-266.44009441,0.00015744,2]
[394079136,1763248232170,-343.55990559,0.00015744,2]
[394079137,1763248232179,-647.36,0.0001583,2]
[394079138,1763248232189,-230.37694898,0.00015895,2]
[394079139,1763248232198,-195.0,0.0001592,2]
[394079140,1763248232207,-230.37694896,0.00015946,2]
[394079141,1763248232216,-999.0,0.00015994,2]
[394079142,1763248232227,-1200.0,0.00015994,2]
[394079143,1763248232241,-300.0,0.00015994,2]
[394079144,1763248232250,-300.0,0.00015995,2]
[394079145,1763248232261,-300.0,0.00015995,2]
[394079146,1763248232270,-29294.04179781,0.00015996,2]
[394079147,1763248232281,-29073.87358291,0.00015996,2]
[394079148,1763248232313,-3532.08461928,0.00015996,2]
[394079149,1763248232322,-327.40446458,0.00015996,2]
[394079150,1763248232331,-230.37694896,0.00015996,2]
[394079151,1763248232341,-403.67238193,0.00016073,2]
[394079152,1763248232349,-501.91245929,0.00016073,2]
[394079153,1763248232358,-509.78090184,0.00016073,2]
[394079154,1763248232367,-500.0,0.00016073,2]
[394079155,1763248232376,-500.0,0.00016073,2]
[394079156,1763248232385,-413.94,0.00016086,2]
[394079157,1763248232394,-200.0,0.00016086,2]
[394079158,1763248232404,-151.0,0.00016086,2]
[394079159,1763248232414,-151.0,0.00016086,2]
[394079160,1763248232424,-151.0,0.00016086,2]
[394079161,1763248232433,-151.0,0.00016086,2]
[394079162,1763248232442,-151.0,0.00016086,2]
[394079163,1763248232452,-151.0,0.00016086,2]